bitfinex-derivatives/quotes_SOLF0:USTF0_20251107
["timestamp","ask_amount","ask_price","bid_price","bid_amount"]
[1762473844600,0.04303566,155.84,155.82,2.96]
[1762473845198,0.52303566,155.84,155.81,0.04268637]
[1762473845598,0.04303566,155.84,155.81,3.00268637]
[1762473846097,0.04303566,155.84,155.72,2.96]
[1762473846304,0.48,155.82,155.72,2.96]
[1762473846797,0.48,155.8,155.72,2.96]
[1762473847205,0.48,155.77,155.74,0.0428928]
[1762473847402,0.52639841,155.77,155.74,0.04494326]
[1762473847597,0.48,155.76,155.74,0.04494326]
[1762473847797,0.04639841,155.77,155.74,3.00494326]
[1762473847997,0.52639841,155.77,155.74,0.04494326]
[1762473848399,6.2615,155.76,155.74,0.04494326]
[1762473848594,0.04639841,155.77,155.74,0.04494326]
[1762473848797,0.52639841,155.77,155.74,0.04494326]
[1762473849098,6.30749841,155.77,155.74,0.04494326]
[1762473849315,0.04639841,155.77,155.74,3.00494326]
[1762473849596,0.04639841,155.77,155.74,8.78684326]
[1762473849802,0.48,155.85,155.74,3.00494326]
[1762473850006,0.48,155.84,155.74,2.96]
[1762473850706,0.48,155.84,155.66,11.5697]
[1762473851005,0.04866771,155.77,155.73,0.04721776]
[1762473851201,5.82711724,155.77,155.73,0.04850615]
[1762473851408,0.04601724,155.77,155.73,3.10850615]
[1762473853811,0.52601724,155.77,155.73,0.04850615]
[1762473854514,0.48,155.76,155.73,0.04850615]
[1762473854914,6.2615,155.76,155.73,0.04850615]
[1762473855912,0.48,155.76,155.73,0.04850615]
[1762473857110,0.04601724,155.77,155.73,3.10850615]
[1762473857808,0.52601724,155.77,155.73,0.04850615]
[1762473858106,0.48,155.76,155.73,0.04850615]
[1762473858804,5.7819,155.75,155.73,0.04850615]
[1762473858999,0.04601724,155.77,155.73,0.04850615]
[1762473859215,0.52601724,155.77,155.73,0.04850615]
[1762473860805,0.48,155.76,155.73,0.04850615]
[1762473861005,0.48,155.76,155.67,3.06]
[1762473861206,0.48,155.76,155.63,340.8214799]
[1762473861207,5.7833,155.71,155.64,8.8457]
[1762473861408,0.48,155.74,155.65,3.06]
[1762473862112,0.04139234,155.71,155.68,3.10204069]
[1762473864113,5.7837,155.7,155.68,0.04204069]
[1762473864912,6.2637,155.7,155.68,0.04204069]
[1762473865114,0.48,155.69,155.68,0.04204069]
[1762473865411,0.48,155.68,155.56,3.06]
[1762473865611,0.48,155.66,155.56,3.06]
[1762473865812,0.48,155.64,155.56,3.06]
[1762473866210,0.04153396,155.62,155.58,0.04676197]
[1762473866517,0.52153396,155.62,155.58,0.04676197]
[1762473867917,6.2671,155.61,155.58,0.04676197]
[1762473868114,0.04153396,155.62,155.58,0.04676197]
[1762473868315,6.30833396,155.62,155.58,0.04676197]
[1762473869016,0.52153396,155.62,155.58,0.04676197]
[1762473871019,0.48,155.61,155.58,0.04676197]
[1762473871618,0.52153396,155.62,155.58,0.04676197]
[1762473872418,0.48,155.59,155.48,3.06]
[1762473872621,0.48,155.57,155.44,3.06]
[1762473873324,0.48,155.57,155.49,3.06]
[1762473873715,0.04758412,155.55,155.52,3.06]
[1762473874216,0.04758412,155.55,155.52,8.85]
[1762473874413,0.04758412,155.55,155.53,3.06]
[1762473874813,0.53,155.69,155.54,3.06]
[1762473875028,0.53,155.68,155.54,3.06]
[1762473875221,0.53,155.67,155.54,3.06]
[1762473875422,5.7858,155.64,155.56,3.06]
[1762473875925,0.04066386,155.62,155.58,3.10547464]
[1762473876827,42.71,155.71,155.59,3.06]
[1762473877217,0.53,155.68,155.59,3.06]
[1762473877936,0.04177477,155.65,155.62,3.05095817]
[1762473879426,0.04177477,155.65,155.64,3.01]
[1762473881329,66.16,155.76,155.67,3.1]
[1762473881525,0.58,155.75,155.67,3.1]
[1762473881925,5.7823,155.74,155.67,8.8845]
[1762473882229,0.58,155.75,155.67,8.8845]
[1762473882424,0.62343224,155.73,155.69,0.04198569]
[1762473883026,0.04343224,155.73,155.69,3.14198569]
[1762473883620,0.58,155.72,155.69,0.04198569]
[1762473884519,0.58,155.71,155.69,0.04198569]
[1762473884719,0.58,155.71,155.44,252.446]
[1762473884720,0.58,155.71,155.58,3.1]
[1762473884932,30.03141374,155.76,155.58,3.1]
[1762473884933,0.58,155.7,155.58,3.1]
[1762473885128,0.58,155.7,155.6,3.1]
[1762473885631,0.04066402,155.67,155.63,3.14091052]
[1762473885835,0.58,155.7,155.63,3.1]
[1762473886132,0.04440809,155.67,155.63,3.14496696]
[1762473888626,0.62440809,155.67,155.63,0.04496696]
[1762473889128,0.04440809,155.67,155.63,3.14496696]
[1762473892731,0.04440809,155.67,155.65,8.8853]
[1762473893139,0.04440809,155.67,155.66,3.1]
[1762473894137,0.04440809,155.67,155.66,4.38]
[1762473894535,4.8172025,155.76,155.69,3.1]
[1762473894733,4.8172025,155.75,155.69,3.1]
[1762473894938,5.4372025,155.77,155.69,3.1]
[1762473895137,4.8172025,155.76,155.69,3.1]
[1762473895332,4.8172025,155.75,155.69,3.1]
[1762473895528,0.04508708,155.74,155.71,3.1]
[1762473895734,0.0456508,155.74,155.71,3.14693357]
[1762473896033,0.0456508,155.74,155.73,3.1]
[1762473897637,0.62,155.83,155.75,3.1]
[1762473897843,6.4501,155.8,155.75,3.1]
[1762473898141,0.67,155.8,155.75,3.1]
[1762473898338,4.83206493,155.85,155.75,3.1]
[1762473898648,5.7794,155.82,155.78,0.04691368]
[1762473898837,0.67,155.81,155.78,0.04691368]
[1762473899144,0.67,155.8,155.78,0.04691368]
[1762473900043,0.67,155.79,155.72,8.8827]
[1762473900234,0.67,155.83,155.73,3.1]
[1762473900441,6.4489,155.83,155.76,3.1]
[1762473900642,11.28166712,155.83,155.76,3.1]
[1762473900946,0.04763638,155.81,155.78,0.04648691]
[1762473901139,0.04763638,155.81,155.78,3.14648691]
[1762473901345,0.71763638,155.81,155.78,0.04648691]
[1762473902345,0.04763638,155.81,155.78,3.14648691]
[1762473902844,0.04763638,155.81,155.8,3.1]
[1762473904339,0.04763638,155.81,155.78,3.14648691]
[1762473904841,0.04763638,155.81,155.78,0.04648691]
[1762473905042,0.04763638,155.81,155.78,3.14648691]
[1762473905448,0.67,155.89,155.78,3.14648691]
[1762473905449,0.67,155.89,155.79,3.1]
[1762473905745,0.67,155.93,155.84,3.1]
[1762473906140,4.81711385,155.95,155.84,3.1]
[1762473906344,0.67,155.94,155.86,3.1]
[1762473906540,6.4448,155.94,155.88,0.04351576]
[1762473907137,6.4448,155.94,155.88,3.14351576]
[1762473907339,0.67,155.94,155.88,3.14351576]
[1762473907538,0.67,155.97,155.88,3.14351576]
[1762473907744,0.67,156.02,155.92,3.1]
[1762473908044,6.443,155.99,155.95,0.04505464]
[1762473909037,0.67,155.98,155.95,0.04505464]
[1762473909446,6.4443,155.96,155.88,3.1]
[1762473909648,0.67,155.96,155.88,3.1]
[1762473909951,0.67,155.96,155.84,3.1]
[1762473910146,6.4453,155.93,155.84,3.1]
[1762473910342,0.67,155.93,155.84,3.1]
[1762473910546,0.04330798,155.9,155.87,0.04784945]
[1762473911943,0.66,155.99,155.87,3.01784945]
[1762473912247,0.66,155.99,155.83,5.7786]
[1762473912452,0.7,155.98,155.84,2.97]
[1762473912652,5.776,155.91,155.84,2.97]
[1762473912852,0.7,155.93,155.84,2.97]
[1762473913050,0.7,155.93,155.87,0.04236028]
[1762473913251,0.7,155.9,155.87,0.04236028]
[1762473913550,0.7,155.94,155.87,3.01236028]
[1762473913756,0.7,155.9,155.89,0.04723414]
[1762473914052,0.7,155.9,155.88,0.04071231]
[1762473914241,1.28,155.9,155.8,2.97]
[1762473914447,0.7,155.88,155.78,2.97]
[1762473914643,0.7,155.92,155.78,2.97]
[1762473915248,5.7764,155.9,155.82,5.7791]
[1762473915448,0.04767045,155.87,155.83,3.01847217]
[1762473915950,0.04767045,155.87,155.85,2.97]
[1762473916753,0.7,155.96,155.86,2.97]
[1762473916949,5.7756,155.92,155.86,2.97]
[1762473917146,0.7,155.93,155.86,2.97]
[1762473917855,0.7,155.93,155.88,3.01683256]
[1762473918046,9.66021239,155.97,155.89,3.01222666]
[1762473918047,0.7,155.96,155.89,3.01222666]
[1762473918251,0.7,155.96,155.91,0.04679448]
[1762473918850,0.7,155.93,155.91,0.04679448]
[1762473919650,0.7,155.92,155.91,0.04679448]
[1762473919849,0.7,155.92,155.74,81.27]
[1762473919850,0.7,155.91,155.75,2.97]
[1762473920055,5.7762,155.9,155.75,2.97]
[1762473920255,5.7762,155.9,155.8,2.97]
[1762473920452,0.7,155.91,155.8,2.97]
[1762473920650,5.7755,155.92,155.84,2.97]
[1762473920852,0.04933424,155.9,155.86,3.01574224]
[1762473921051,0.04349369,155.9,155.86,3.01206831]
[1762473923258,0.04349369,155.9,155.87,2.97]
[1762473926554,0.04349369,155.9,155.88,2.97]
[1762473928360,0.04349369,155.9,155.88,8.7468]
[1762473928562,0.04349369,155.9,155.89,2.97]
[1762473930959,4.78807794,155.99,155.89,2.97]
[1762473931158,0.75,155.99,155.92,2.97]
[1762473931367,5.54181325,155.98,155.92,2.97]
[1762473931663,0.75,155.98,155.92,2.97]
[1762473932063,0.75,155.98,155.93,0.04365477]
[1762473932465,5.7741,155.96,155.93,0.04365477]
[1762473932765,0.75,155.98,155.93,0.04365477]
[1762473933668,0.75,155.98,155.93,3.01365477]
[1762473933868,5.63797599,155.97,155.93,3.01365477]
[1762473934059,0.75,155.97,155.93,3.0173219]
[1762473934762,0.75,155.96,155.93,0.0473219]
[1762473934959,30.8132,156.03,155.93,0.04803643]
[1762473934960,5.64164699,155.95,155.93,0.04803643]
[1762473935161,5.7741,155.96,155.92,3.01806012]
[1762473935361,0.75,155.96,155.92,3.01314452]
[1762473935562,4.89601933,155.95,155.92,3.01314452]
[1762473935760,0.75,155.96,155.92,3.01314452]
[1762473936267,4.90022029,155.95,155.92,3.01314452]
[1762473936562,5.7744,155.95,155.92,3.01314452]
[1762473936759,6.70198698,156.0,155.92,3.01314452]
[1762473936965,0.75,155.98,155.94,0.04948593]
[1762473937162,5.65005242,155.97,155.94,0.04948593]
[1762473937464,0.75,155.97,155.94,0.04948593]
[1762473937667,0.74,155.99,155.94,3.22948593]
[1762473937866,4.90364884,155.98,155.94,3.22948593]
[1762473938056,0.74,156.01,155.94,3.22948593]
[1762473938265,4.90321704,156.0,155.94,3.22948593]
[1762473938463,5.64321704,155.99,155.94,3.22948593]
[1762473938767,0.74,156.02,155.94,3.22948593]
[1762473938971,0.74,156.0,155.94,3.22948593]
[1762473939163,4.9071908,155.99,155.96,3.18]
[1762473939370,0.74,156.0,155.96,3.18]
[1762473939668,4.9105176,155.99,155.94,3.22948593]
[1762473939863,0.74,156.02,155.96,3.18]
[1762473940056,4.91051641,156.01,155.97,3.22291943]
[1762473940254,4.91051641,156.0,155.97,3.22291943]
[1762473940459,4.91051641,155.99,155.97,3.22291943]
[1762473940666,0.75,156.01,155.97,3.22291943]
[1762473940861,5.66433633,156.0,155.97,0.04291943]
[1762473941061,4.91433633,155.99,155.97,0.04291943]
[1762473941261,4.91433633,155.98,155.97,0.04291943]
[1762473943168,5.66433633,155.98,155.97,0.04291943]
[1762473945673,11.61632331,155.98,155.97,0.04291943]
[1762473945972,5.66433633,155.98,155.97,0.04291943]
[1762473946173,6.5239,155.97,155.91,3.21]
[1762473946363,0.75,155.95,155.91,3.21]
[1762473946559,4.91433633,155.94,155.91,3.21]
[1762473946772,0.75,155.95,155.91,3.21]
[1762473946974,4.93110249,155.94,155.91,3.21]
[1762473947269,0.79800737,155.94,155.91,0.04237434]
[1762473947570,1.67483831,155.93,155.92,1.28]
[1762473947772,9.20198698,156.01,155.97,3.21]
[1762473947965,3.25,156.01,155.97,3.21]
[1762473948659,3.25,156.01,155.97,3.25341238]
[1762473948863,9.20198698,156.03,155.98,8.9831]
[1762473949060,9.20198698,156.03,155.97,0.04341238]
[1762473949061,9.20198698,156.03,155.99,3.21]
[1762473949266,3.25,156.03,155.99,3.21]
[1762473949777,9.0215,156.03,155.99,3.21]
[1762473950670,9.0215,156.03,155.99,8.9828]
[1762473950873,3.25,156.03,155.99,8.9828]
[1762473951174,5.95198698,156.05,155.99,3.21]
[1762473951369,3.25,156.04,156.0,0.04184593]
[1762473952868,3.25,156.03,156.0,0.04184593]
[1762473953068,3.29745275,156.03,155.88,11.5535]
[1762473953267,3.25,156.02,155.89,3.21]
[1762473953469,5.773,155.99,155.93,8.9848]
[1762473953662,5.95198698,156.03,155.86,3.21]
[1762473953663,3.25,156.0,155.86,3.21]
[1762473954169,3.25,156.0,155.85,11.3]
[1762473954170,3.29479674,155.95,155.91,0.04523402]
[1762473954370,3.29479674,155.95,155.91,0.0431801]
[1762473955577,5.7748,155.94,155.91,0.0431801]
[1762473956077,3.29479674,155.95,155.91,3.2531801]
[1762473959270,5.81929674,155.95,155.91,3.2531801]
[1762473959572,3.29479674,155.95,155.91,3.2531801]
[1762473959785,9.0248,155.94,155.91,0.0431801]
[1762473959979,3.25,155.93,155.91,0.0431801]
[1762473960379,3.25,155.89,155.82,3.21]
[1762473960875,8.08131376,155.93,155.87,3.21]
[1762473961079,3.25,155.91,155.77,3.21]
[1762473961279,0.04876763,155.86,155.83,3.21]
[1762473961680,0.04876763,155.86,155.83,3.25863791]
[1762473962278,3.25,155.95,155.83,0.04863791]
[1762473962578,3.25,155.95,155.8,11.5595]
[1762473962579,3.25,155.95,155.89,3.21]
[1762473963584,0.04159044,155.94,155.9,3.25264643]
[1762473966580,0.04159044,155.94,155.93,3.21]
[1762473966781,3.25,156.02,155.93,3.21]
[1762473966981,4.81586099,156.01,155.93,3.21]
[1762473967185,4.81586099,156.01,155.86,11.5547]
[1762473967186,5.7715,156.03,155.98,3.21]
[1762473967391,4.81529137,156.02,155.98,3.21]
[1762473967592,9.20198698,156.05,155.98,3.21]
[1762473967894,4.8156364,156.04,156.0,3.21]
[1762473968185,4.8156364,156.03,156.0,8.9823]
[1762473968393,3.25,156.01,155.98,0.04279221]
[1762473968785,3.25,156.04,155.98,0.04279221]
[1762473969080,8.06502787,156.03,155.98,0.04279221]
[1762473969280,4.81428585,156.02,155.99,0.04052166]
[1762473969482,4.81428585,156.01,155.99,0.04052166]
[1762473969684,9.0219,156.02,155.99,0.04052166]
[1762473969891,3.25,156.02,155.99,0.04052166]
[1762473970095,3.25,156.06,155.99,0.04052166]
[1762473970293,4.81430249,156.05,155.99,0.04052166]
[1762473970593,4.81430249,156.04,155.99,3.25052166]
[1762473970792,4.81430249,156.03,155.99,3.25052166]
[1762473970996,5.7708,156.05,155.99,9.02312166]
[1762473971190,3.11,156.03,155.99,3.25052166]
[1762473971397,3.11,156.03,155.99,0.04052166]
[1762473971591,3.11,156.01,155.99,0.04052166]
[1762473971992,3.11,156.04,155.99,0.04052166]
[1762473972292,109.51601354,156.1,155.99,3.25052166]
[1762473972293,4.81375404,156.03,155.99,3.25052166]
[1762473972493,3.11,156.05,155.99,3.21]
[1762473972698,4.81285904,156.04,155.99,3.25077148]
[1762473972997,3.11,156.08,155.99,3.25077148]
[1762473973193,3.11,156.06,156.02,0.04279844]
[1762473973400,3.11,156.04,156.02,0.0473083]
[1762473973596,4.81279798,156.03,156.02,0.0473083]
[1762473974292,7.92279798,156.03,156.02,0.0473083]
[1762473974497,9.798e-05,156.05,156.02,3.2573083]
[1762473974700,3.11,156.09,156.02,3.2573083]
[1762473974901,3.11,156.09,156.02,0.0473083]
[1762473975109,9.06198698,156.09,156.02,0.0473083]
[1762473975289,3.11,156.09,156.02,0.0473083]
[1762473975906,8.8793,156.09,156.02,5.8189083]
[1762473977507,8.8793,156.09,156.03,3.21]
[1762473979509,3.11,156.09,156.03,8.9812]
[1762473979709,3.11,156.09,156.03,3.21]
[1762473980311,3.11,156.09,156.05,5.7705]
[1762473980509,3.11,156.09,156.05,5.81380234]
[1762473981399,3.11,156.09,156.05,9.02380234]
[1762473981809,5.7682,156.12,156.06,8.9799]
[1762473982005,3.11,156.11,156.07,0.04732195]
[1762473982203,3.11,156.11,156.02,3.21]
[1762473982407,8.8801,156.07,155.99,3.21]
[1762473982705,3.11,156.07,155.99,3.21]
[1762473983108,3.11,156.07,156.03,5.7712]
[1762473983410,3.15295816,156.07,156.03,9.02820661]
[1762473983615,3.15295816,156.07,156.03,3.25700661]
[1762473983803,3.15295816,156.07,156.05,5.7703]
[1762473984004,0.04295816,156.07,156.06,3.21]
[1762473985701,3.11,156.14,156.06,3.21]
[1762473986105,5.95198698,156.17,156.07,5.7697]
[1762473986106,8.8778,156.13,156.07,5.7697]
[1762473986308,3.11,156.16,156.08,3.21]
[1762473986513,4.77105994,156.15,156.08,3.21]
[1762473986817,3.11,156.14,156.1,0.04709926]
[1762473987309,3.11,156.14,156.1,9.02579926]
[1762473987503,3.11,156.15,156.1,3.25709926]
[1762473987705,4.77105994,156.17,156.1,3.25709926]
[1762473987905,3.11,156.18,156.1,3.25709926]
[1762473988109,3.11,156.18,156.12,0.04322962]
[1762473988309,3.11,156.16,156.12,0.04322962]
[1762473989615,8.8767,156.16,156.12,0.04322962]
[1762473989812,3.11,156.15,156.12,0.04322962]
[1762473992316,1.11459868,156.22,156.12,0.04322962]
[1762473992317,3.11,156.18,156.12,3.25322962]
[1762473992515,3.11,156.18,156.12,3.21]
[1762473992718,3.11,156.18,156.13,0.04186521]
[1762473993221,8.876,156.18,156.13,0.04186521]
[1762473993521,3.11,156.17,156.13,0.04186521]
[1762473994918,3.11,156.17,156.01,7.24]
[1762473994919,3.11,156.15,156.01,3.21]
[1762473995123,3.11,156.13,155.98,3.21]
[1762473995320,3.11,156.11,155.98,3.21]
[1762473995519,5.7704,156.06,155.99,5.7726]
[1762473995724,3.11,156.05,155.98,3.21]
[1762473996016,3.11,156.05,155.93,19.54350335]
[1762473996017,3.11,156.02,156.0,0.04774028]
[1762473996213,3.11,156.02,155.95,3.21]
[1762473996419,3.11,156.02,155.92,3.21]
[1762473996825,8.8826,156.0,155.93,5.7749]
[1762473997013,65.6,156.05,155.89,3.21]
[1762473997014,3.11,155.99,155.89,3.21]
[1762473997421,3.11,155.95,155.92,0.04046873]
[1762473997618,3.11,155.95,155.92,0.04674275]
[1762473998329,3.24,155.93,155.92,0.04674275]
[1762473998519,3.24,155.93,155.85,2.94]
[1762473999217,3.24,155.92,155.85,8.7178]
[1762473999426,0.04899676,155.9,155.87,0.0475604]
[1762473999721,3.24,155.89,155.81,2.94]
[1762473999928,3.24,155.92,155.81,2.94]
[1762474000328,5.7761,155.91,155.81,8.7194]
[1762474000523,2.97,155.9,155.81,8.7194]
[1762474000727,3.01200919,155.87,155.84,0.04700455]
[1762474003530,0.04200919,155.87,155.84,3.18700455]
[1762474004030,0.04200919,155.87,155.85,3.14]
[1762474005226,0.04200919,155.87,155.86,8.9177]
[1762474005427,2.97,155.95,155.86,3.14]
[1762474005627,2.97,155.93,155.86,3.14]
[1762474005824,2.97,155.93,155.77,89.9263]
[1762474005825,2.97,155.98,155.89,3.14]
[1762474006318,0.04904694,155.95,155.92,5.82222032]
[1762474006525,0.04904694,155.95,155.93,3.14]
[1762474007020,0.04904694,155.95,155.92,3.18712032]
[1762474007828,2.97,156.03,155.94,3.14]
[1762474008228,2.97,156.03,155.95,5.774]
[1762474008632,2.97,156.03,155.94,3.14]
[1762474008826,0.04417103,156.0,155.97,0.0449725]
[1762474009431,0.04417103,156.0,155.97,3.1849725]
[1762474012027,3.01417103,156.0,155.97,0.0449725]
[1762474014739,0.04417103,156.0,155.97,3.1849725]
[1762474015137,0.04417103,156.0,155.97,4.4649725]
[1762474015330,2.97,156.08,156.01,5.7721]
[1762474015836,2.97,156.08,155.98,3.14]
[1762474015837,2.97,156.07,155.99,5.7727]
[1762474016235,0.04605732,156.05,156.01,3.18264033]
[1762474017232,3.01605732,156.05,156.01,3.18264033]
[1762474017531,3.01605732,156.05,156.01,0.04264033]
[1762474018437,2.97,156.04,156.01,0.04264033]
[1762474020431,2.97,156.02,156.01,0.04264033]
[1762474020932,0.04605732,156.05,156.01,0.04264033]
[1762474020933,2.97,156.04,156.01,0.04264033]
[1762474021739,2.97,156.02,155.95,3.14]
[1762474021930,2.97,156.02,155.91,3.14]
[1762474022537,2.97,156.02,155.93,5.7749]
[1762474022833,0.04659593,155.99,155.96,3.18413509]
[1762474023031,0.04695866,155.99,155.96,3.18091997]
[1762474023339,0.04695866,155.99,155.96,0.04091997]
[1762474023943,3.01695866,155.99,155.96,0.04091997]
[1762474024438,3.01695866,155.99,155.96,3.18091997]
[1762474024439,0.04695866,155.99,155.96,3.18091997]
[1762474024840,0.04695866,155.99,155.98,3.14]
[1762474025340,0.04695866,155.99,155.96,3.18091997]
[1762474025540,4.75585891,156.06,155.97,3.14]
[1762474025842,2.97,156.08,155.98,3.14]
[1762474026037,5.77,156.07,156.0,5.7723]
[1762474026237,2.97,156.07,156.0,5.7723]
[1762474026437,2.97,156.07,155.98,3.14]
[1762474026643,3.0174787,156.04,156.01,0.04355645]
[1762474028345,0.0474787,156.04,156.01,0.04355645]
[1762474028545,3.0174787,156.04,156.01,0.04355645]
[1762474029340,8.7885787,156.04,156.01,0.04355645]
[1762474029550,2.97,156.03,156.01,0.04355645]
[1762474030347,3.0174787,156.04,156.01,0.04355645]
[1762474033351,0.0474787,156.04,156.03,3.03]
[1762474033744,4.81727902,156.13,156.03,4.31]
[1762474033943,3.08,156.14,156.07,3.03]
[1762474034854,3.08,156.14,156.09,0.04121633]
[1762474035155,3.08,156.14,156.09,3.07121633]
[1762474035447,3.08,156.14,156.1,3.03]
[1762474035748,3.08,156.14,156.09,3.07121633]
[1762474036250,4.81528997,156.15,156.09,3.07121633]
[1762474036556,4.81528997,156.18,156.11,3.03]
[1762474036752,7.89528997,156.21,156.14,3.03]
[1762474036949,3.08,156.19,156.16,0.04352191]
[1762474037149,7.89528997,156.18,156.16,0.04296034]
[1762474037347,3.08,156.18,156.16,0.04296034]
[1762474037950,7.89528997,156.18,156.16,0.04296034]
[1762474038159,3.08,156.18,156.16,0.04296034]
[1762474038451,4.81528997,156.2,156.16,3.07296034]
[1762474038659,4.81528997,156.22,156.16,3.07296034]
[1762474038855,4.81528997,156.23,156.16,3.07296034]
[1762474039054,4.81528997,156.22,156.19,8.7953]
[1762474039261,4.81528997,156.23,156.19,8.84084972]
[1762474039554,4.81528997,156.22,156.2,5.7649]
[1762474039750,3.08,156.24,156.2,5.7649]
[1762474039951,4.81528997,156.24,156.2,8.7949]
[1762474040155,65.98,156.28,156.2,8.7949]
[1762474040156,8.8423,156.28,156.2,3.03]
[1762474040353,3.08,156.27,156.22,0.04554423]
[1762474040754,3.08,156.26,156.22,0.04554423]
[1762474042055,3.08,156.25,156.22,0.04554423]
[1762474042457,3.08,156.21,156.12,3.03]
[1762474043056,3.08,156.2,156.12,3.03]
[1762474043458,0.0456654,156.18,156.14,0.04422178]
[1762474044163,0.0456654,156.18,156.14,3.07422178]
[1762474044766,0.0456654,156.18,156.16,3.03]
[1762474045567,0.0456654,156.18,156.16,8.7963]
[1762474045760,0.0456654,156.18,156.17,3.03]
[1762474046358,0.0456654,156.18,156.14,3.07422178]
[1762474046971,3.1256654,156.18,156.14,0.04422178]
[1762474048965,3.08,156.17,156.14,0.04422178]
[1762474050872,3.08,156.16,156.14,0.04422178]
[1762474051671,8.8468,156.16,156.14,0.04422178]
[1762474051977,3.08,156.14,156.06,278.80237429]
[1762474052172,3.08,156.12,156.03,3.03]
[1762474052372,7.88374937,156.11,156.03,3.03]
[1762474052569,5.7689,156.1,156.04,5.7708]
[1762474052768,3.12337852,156.09,156.05,0.0454525]
[1762474054568,0.04337852,156.09,156.06,3.03]
[1762474055278,0.04337852,156.09,156.07,8.7997]
[1762474055575,0.04337852,156.09,156.08,3.03]
[1762474055780,3.08,156.17,156.08,3.03]
[1762474055970,3.08,156.16,156.08,3.03]
[1762474056768,0.04116857,156.14,156.12,8.7978]
[1762474056973,0.04496509,156.15,156.12,3.03]
[1762474057276,0.04496509,156.15,156.12,3.07239719]
[1762474057471,0.04496509,156.15,156.14,3.22]
[1762474058274,4.73082231,156.23,156.16,5.7665]
[1762474058581,8.9736,156.24,156.14,3.22]
[1762474058879,8.9736,156.24,156.18,5.7657]
[1762474059081,3.21,156.24,156.17,3.22]
[1762474059380,3.21,156.24,156.1,11.5376]
[1762474059381,3.21,156.24,156.2,3.22]
[1762474059578,3.21,156.24,156.2,3.26715271]
[1762474059976,3.21,156.24,156.2,0.04715271]
[1762474060180,3.21,156.22,156.2,0.04715271]
[1762474060381,3.21,156.22,156.14,3.22]
[1762474060775,3.21,156.22,156.14,8.9871]
[1762474061376,0.04723067,156.2,156.16,0.04364211]
[1762474061981,5.81243067,156.2,156.16,0.04364211]
[1762474062685,3.17723067,156.2,156.16,0.04364211]
[1762474064380,0.04723067,156.2,156.17,3.22]
[1762474065888,0.04723067,156.2,156.19,3.22]
[1762474066092,3.13,156.28,156.19,3.22]
[1762474066791,3.13,156.27,156.22,8.9842]
[1762474066994,3.13,156.27,156.23,0.04623707]
[1762474067192,4.72957157,156.3,156.23,3.26623707]
[1762474067589,3.13,156.31,156.23,3.26623707]
[1762474067783,3.13,156.31,156.26,3.22]
[1762474067983,3.13,156.31,156.27,0.04880884]
[1762474068993,3.13,156.3,156.27,0.04880884]
[1762474070387,7.03414537,156.36,156.27,0.04880884]
[1762474070388,4.73099078,156.31,156.27,0.04880884]
[1762474070588,3.13,156.31,156.27,0.04880884]
[1762474071494,3.13,156.31,156.27,3.26880884]
[1762474071688,3.13,156.3,156.27,0.04880884]
[1762474072390,3.13,156.29,156.27,0.04880884]
[1762474073694,3.13,156.31,156.27,0.04880884]
[1762474074191,8.8911,156.31,156.27,0.04880884]
[1762474074393,3.13,156.3,156.27,0.04880884]
[1762474074688,8.8905,156.33,156.27,0.04880884]
[1762474074896,7.86252835,156.32,156.27,0.04880884]
[1762474075194,3.13,156.32,156.27,0.04880884]
[1762474076296,4.73600361,156.31,156.27,0.04880884]
[1762474076493,9.05050973,156.35,156.28,3.22]